[Event "Early-Titled-Tuesday-Blitz-May-07-2024"]
[Site "Chess.com"]
[Date "2024.05.07"]
[Round "5"]
[White "Mrlammy"]
[Black "Kacparov"]
[Result "0-1"]
[WhiteElo "2587"]
[BlackElo "2901"]
[TimeControl "180+1"]
[EndTime "8:58:12 PDT"]
[Termination "Kacparov won by resignation"]

1. d4 {[%clk 0:03:00.9]} 1... Nf6 {[%clk 0:02:59.7]} 2. c4 {[%clk 0:03:01]} 2...
e6 {[%clk 0:03:00]} 3. Nf3 {[%clk 0:03:01.2]} 3... b6 {[%clk 0:02:59.7]} 4. g3
{[%clk 0:02:55.6]} 4... Ba6 {[%clk 0:02:58.9]} 5. Qc2 {[%clk 0:02:55]} 5... c5
{[%clk 0:02:55.5]} 6. d5 {[%clk 0:02:42.7]} 6... exd5 {[%clk 0:02:51.2]} 7. cxd5
{[%clk 0:02:39.6]} 7... d6 {[%clk 0:02:50.9]} 8. Nc3 {[%clk 0:02:35.2]} 8... Be7
{[%clk 0:02:46.7]} 9. e4 {[%clk 0:02:33.1]} 9... Bxf1 {[%clk 0:02:43]} 10. Kxf1
{[%clk 0:02:34]} 10... O-O {[%clk 0:02:41.8]} 11. Kg2 {[%clk 0:02:31.8]} 11...
Nbd7 {[%clk 0:02:35.1]} 12. a4 {[%clk 0:02:27]} 12... Ng4 {[%clk 0:02:31.1]} 13.
Re1 {[%clk 0:02:18.3]} 13... Bf6 {[%clk 0:02:27.8]} 14. Bd2 {[%clk 0:02:00.4]}
14... Nge5 {[%clk 0:02:25.8]} 15. Nxe5 {[%clk 0:02:00.4]} 15... Nxe5 {[%clk
0:02:26.7]} 16. Nb5 {[%clk 0:01:48]} 16... a6 {[%clk 0:02:25.4]} 17. Na3 {[%clk
0:01:40.7]} 17... c4 {[%clk 0:02:02.2]} 18. Bc3 {[%clk 0:01:02.8]} 18... Nd3
{[%clk 0:02:00.2]} 19. Red1 {[%clk 0:01:00.8]} 19... Bxc3 {[%clk 0:01:40.5]} 20.
Qxc3 {[%clk 0:01:00.2]} 20... Rc8 {[%clk 0:01:40.7]} 21. Qd4 {[%clk 0:00:46.7]}
21... Nc5 {[%clk 0:01:30]} 22. Qxc4 {[%clk 0:00:39.2]} 22... Re8 {[%clk
0:01:30]} 23. f3 {[%clk 0:00:29.5]} 23... Nxe4 {[%clk 0:01:24.1]} 24. Qxa6
{[%clk 0:00:28.9]} 24... Nc5 {[%clk 0:01:22.4]} 25. Qb5 {[%clk 0:00:26.8]} 25...
Re3 {[%clk 0:01:20.6]} 26. Re1 {[%clk 0:00:25.3]} 26... Rb3 {[%clk 0:01:18.6]}
27. Qe2 {[%clk 0:00:22.4]} 27... Nxa4 {[%clk 0:01:08.9]} 28. Rac1 {[%clk
0:00:18.1]} 28... Rxb2 {[%clk 0:00:58.4]} 29. Rc2 {[%clk 0:00:18.5]} 29... Rbxc2
{[%clk 0:00:56]} 30. Nxc2 {[%clk 0:00:19.2]} 30... Nc3 {[%clk 0:00:48]} 31. Qe7
{[%clk 0:00:17.7]} 31... Qxe7 {[%clk 0:00:45.5]} 32. Rxe7 {[%clk 0:00:18.6]}
32... Nxd5 {[%clk 0:00:45.9]} 33. Rb7 {[%clk 0:00:17.3]} 33... Rxc2+ {[%clk
0:00:45.3]} 0-1

[Event "Early-Titled-Tuesday-Blitz-May-07-2024"]
[Site "Chess.com"]
[Date "2024.05.07"]
[Round "5"]
[White "GlavkonVVS"]
[Black "RobertoJBM"]
[Result "1-0"]
[WhiteElo "2674"]
[BlackElo "2874"]
[TimeControl "180+1"]
[EndTime "8:58:14 PDT"]
[Termination "GlavkonVVS won by resignation"]

1. c4 {[%clk 0:02:54.2]} 1... c6 {[%clk 0:02:59.7]} 2. Nc3 {[%clk 0:02:53.8]}
2... d5 {[%clk 0:03:00.6]} 3. d4 {[%clk 0:02:54.3]} 3... Nf6 {[%clk 0:03:00.4]}
4. Nf3 {[%clk 0:02:54.8]} 4... dxc4 {[%clk 0:03:00.6]} 5. a4 {[%clk 0:02:54.5]}
5... Bf5 {[%clk 0:03:00.7]} 6. e3 {[%clk 0:02:54.8]} 6... e6 {[%clk 0:03:01.3]}
7. Bxc4 {[%clk 0:02:54.9]} 7... Bb4 {[%clk 0:03:01.9]} 8. O-O {[%clk 0:02:55.4]}
8... O-O {[%clk 0:03:02.1]} 9. Ne2 {[%clk 0:02:56]} 9... h6 {[%clk 0:03:01.7]}
10. b3 {[%clk 0:02:56.3]} 10... Nbd7 {[%clk 0:03:01.4]} 11. Bb2 {[%clk
0:02:56.9]} 11... Qe7 {[%clk 0:03:01.8]} 12. Ng3 {[%clk 0:02:57.4]} 12... Bh7
{[%clk 0:02:58.5]} 13. Qe2 {[%clk 0:02:55.2]} 13... Rfd8 {[%clk 0:02:56.6]} 14.
e4 {[%clk 0:02:48.2]} 14... a5 {[%clk 0:02:46.6]} 15. Rad1 {[%clk 0:02:47.3]}
15... Rac8 {[%clk 0:02:45.7]} 16. Qe3 {[%clk 0:02:25]} 16... c5 {[%clk
0:02:10.5]} 17. d5 {[%clk 0:02:15.2]} 17... exd5 {[%clk 0:02:09.8]} 18. exd5
{[%clk 0:02:14.3]} 18... Qxe3 {[%clk 0:02:07.7]} 19. fxe3 {[%clk 0:02:14.5]}
19... Re8 {[%clk 0:01:53]} 20. Nh4 {[%clk 0:02:02.6]} 20... Rxe3 {[%clk
0:01:33.7]} 21. Nhf5 {[%clk 0:02:02.1]} 21... Bxf5 {[%clk 0:01:19]} 22. Nxf5
{[%clk 0:02:01.9]} 22... Re5 {[%clk 0:01:02.6]} 23. d6 {[%clk 0:01:43.8]} 23...
Rd8 {[%clk 0:00:52.5]} 24. g4 {[%clk 0:01:27]} 24... Re4 {[%clk 0:00:46.6]} 25.
h3 {[%clk 0:01:23.9]} 25... Ne5 {[%clk 0:00:42.6]} 26. Bxe5 {[%clk 0:01:18.3]}
26... Rxe5 {[%clk 0:00:42.5]} 27. Nxh6+ {[%clk 0:01:18.6]} 27... gxh6 {[%clk
0:00:38.9]} 28. Rxf6 {[%clk 0:01:19]} 28... Bc3 {[%clk 0:00:22.7]} 29. Rxf7
{[%clk 0:01:16.9]} 29... Kh8 {[%clk 0:00:21.9]} 30. d7 {[%clk 0:00:55.3]} 30...
Kg8 {[%clk 0:00:18.5]} 31. Rf3+ {[%clk 0:00:52.8]} 1-0

[Event "Early-Titled-Tuesday-Blitz-May-07-2024"]
[Site "Chess.com"]
[Date "2024.05.07"]
[Round "5"]
[White "viktorgen2021"]
[Black "klifus"]
[Result "1-0"]
[WhiteElo "2506"]
[BlackElo "2218"]
[TimeControl "180+1"]
[EndTime "8:58:14 PDT"]
[Termination "viktorgen2021 won by resignation"]

1. e4 {[%clk 0:02:56.1]} 1... c5 {[%clk 0:02:58.2]} 2. Nc3 {[%clk 0:02:48.6]}
2... Nc6 {[%clk 0:02:57]} 3. g3 {[%clk 0:02:49]} 3... g6 {[%clk 0:02:55.9]} 4.
Bg2 {[%clk 0:02:48.6]} 4... Bg7 {[%clk 0:02:55.9]} 5. Nge2 {[%clk 0:02:49.3]}
5... Nf6 {[%clk 0:02:54.4]} 6. d3 {[%clk 0:02:49.8]} 6... O-O {[%clk 0:02:52.7]}
7. O-O {[%clk 0:02:48.8]} 7... d6 {[%clk 0:02:52.1]} 8. h3 {[%clk 0:02:48.3]}
8... Rb8 {[%clk 0:02:51.2]} 9. a4 {[%clk 0:02:47.7]} 9... a6 {[%clk 0:02:50.4]}
10. Be3 {[%clk 0:02:47.6]} 10... b5 {[%clk 0:02:49.9]} 11. axb5 {[%clk
0:02:44.6]} 11... axb5 {[%clk 0:02:49.9]} 12. Qd2 {[%clk 0:02:45.5]} 12... Nd4
{[%clk 0:02:35.9]} 13. Nxd4 {[%clk 0:02:42.9]} 13... cxd4 {[%clk 0:02:35.2]} 14.
Bxd4 {[%clk 0:02:43.8]} 14... e5 {[%clk 0:02:27]} 15. Be3 {[%clk 0:02:38.6]}
15... Be6 {[%clk 0:02:26.6]} 16. Nd5 {[%clk 0:02:24.2]} 16... Bxd5 {[%clk
0:02:19.5]} 17. exd5 {[%clk 0:02:23.5]} 17... Nd7 {[%clk 0:02:18.1]} 18. Ra7
{[%clk 0:02:19.3]} 18... f5 {[%clk 0:02:13.8]} 19. Bg5 {[%clk 0:02:18.8]} 19...
Bf6 {[%clk 0:02:05.7]} 20. Bxf6 {[%clk 0:02:16.9]} 20... Rxf6 {[%clk 0:02:03.7]}
21. Rfa1 {[%clk 0:02:15.9]} 21... Rf7 {[%clk 0:01:52.2]} 22. Qh6 {[%clk
0:02:07]} 22... Qf8 {[%clk 0:01:45.3]} 23. Qxf8+ {[%clk 0:01:55.1]} 23... Kxf8
{[%clk 0:01:44.5]} 24. R1a6 {[%clk 0:01:54.6]} 24... Rb6 {[%clk 0:01:34.8]} 25.
Ra8+ {[%clk 0:01:49.2]} 25... Kg7 {[%clk 0:01:33.6]} 26. Rxb6 {[%clk 0:01:41.6]}
26... Nxb6 {[%clk 0:01:33.4]} 27. Rb8 {[%clk 0:01:40.5]} 27... Na4 {[%clk
0:01:32.4]} 28. Rxb5 {[%clk 0:01:37.6]} 28... Rc7 {[%clk 0:01:27.6]} 29. c3
{[%clk 0:01:37]} 29... Kf6 {[%clk 0:01:24.7]} 30. Kf1 {[%clk 0:01:34.6]} 30...
Nc5 {[%clk 0:01:21.4]} 31. Ke2 {[%clk 0:01:33.7]} 31... Ra7 {[%clk 0:01:19.7]}
32. Rb8 {[%clk 0:01:21.8]} 32... e4 {[%clk 0:01:18.9]} 33. dxe4 {[%clk
0:01:19.4]} 33... fxe4 {[%clk 0:01:17.1]} 34. Ke3 {[%clk 0:01:18.6]} 34... Ke5
{[%clk 0:01:15.1]} 35. c4 {[%clk 0:01:16]} 35... Re7 {[%clk 0:01:06.2]} 36. b4
{[%clk 0:01:12.4]} 36... Nd7 {[%clk 0:01:00.7]} 37. Rb7 {[%clk 0:01:09.3]} 37...
Kf6 {[%clk 0:00:50.2]} 38. Kd4 {[%clk 0:01:04.6]} 38... Kf5 {[%clk 0:00:41.4]}
39. c5 {[%clk 0:01:00.4]} 39... dxc5+ {[%clk 0:00:40.2]} 40. bxc5 {[%clk
0:01:01.3]} 40... Nxc5 {[%clk 0:00:36.6]} 41. Rxe7 {[%clk 0:00:59.9]} 41... Nb3+
{[%clk 0:00:34.6]} 42. Kc3 {[%clk 0:00:58.6]} 1-0

[Event "Early-Titled-Tuesday-Blitz-May-07-2024"]
[Site "Chess.com"]
[Date "2024.05.07"]
[Round "5"]
[White "Matsanovic"]
[Black "Smiechu"]
[Result "1-0"]
[WhiteElo "2588"]
[BlackElo "2382"]
[TimeControl "180+1"]
[EndTime "8:58:15 PDT"]
[Termination "Matsanovic won by resignation"]

1. e4 {[%clk 0:03:00.9]} 1... c5 {[%clk 0:02:57.6]} 2. Nf3 {[%clk 0:03:00.4]}
2... g6 {[%clk 0:02:57]} 3. d4 {[%clk 0:02:59.6]} 3... cxd4 {[%clk 0:02:57.9]}
4. Qxd4 {[%clk 0:02:59.9]} 4... Nf6 {[%clk 0:02:57.5]} 5. Nc3 {[%clk 0:03:00]}
5... Nc6 {[%clk 0:02:57]} 6. Qa4 {[%clk 0:03:00.5]} 6... d6 {[%clk 0:02:57.6]}
7. e5 {[%clk 0:03:00.6]} 7... dxe5 {[%clk 0:02:58.5]} 8. Nxe5 {[%clk 0:03:01.1]}
8... Bd7 {[%clk 0:02:58.8]} 9. Nxd7 {[%clk 0:03:01.1]} 9... Nxd7 {[%clk
0:02:59.6]} 10. Bb5 {[%clk 0:02:59.4]} 10... Bg7 {[%clk 0:02:59.7]} 11. O-O
{[%clk 0:02:58.6]} 11... O-O {[%clk 0:02:59.2]} 12. Be3 {[%clk 0:02:53.4]} 12...
Nb6 {[%clk 0:02:55.4]} 13. Qe4 {[%clk 0:02:44.7]} 13... Bxc3 {[%clk 0:02:38.8]}
14. bxc3 {[%clk 0:02:44.1]} 14... Qd5 {[%clk 0:02:37.5]} 15. Bd3 {[%clk
0:02:32.1]} 15... Qxe4 {[%clk 0:02:36.2]} 16. Bxe4 {[%clk 0:02:33]} 16... f5
{[%clk 0:02:24.5]} 17. Bf3 {[%clk 0:02:28.2]} 17... e5 {[%clk 0:02:21.2]} 18.
Rfd1 {[%clk 0:02:24.1]} 18... e4 {[%clk 0:02:18.1]} 19. Be2 {[%clk 0:02:22.6]}
19... Rfd8 {[%clk 0:02:17.2]} 20. f3 {[%clk 0:02:21.4]} 20... Re8 {[%clk
0:01:49.4]} 21. Kf2 {[%clk 0:02:18.2]} 21... Kf7 {[%clk 0:01:34.8]} 22. a4
{[%clk 0:02:11]} 22... Re5 {[%clk 0:01:26.7]} 23. Rab1 {[%clk 0:01:53.8]} 23...
Re7 {[%clk 0:00:38.5]} 24. Bc5 {[%clk 0:01:38.1]} 24... Rd7 {[%clk 0:00:24.8]}
25. Rxd7+ {[%clk 0:01:30.4]} 25... Nxd7 {[%clk 0:00:25]} 26. Rxb7 {[%clk
0:01:30.2]} 26... Ke8 {[%clk 0:00:23.6]} 27. Bd6 {[%clk 0:01:15]} 27... a6
{[%clk 0:00:18.3]} 28. fxe4 {[%clk 0:01:05.9]} 28... fxe4 {[%clk 0:00:18.1]} 29.
Ke3 {[%clk 0:01:06.6]} 29... Rd8 {[%clk 0:00:10.3]} 30. Bxa6 {[%clk 0:01:02.1]}
30... Kf7 {[%clk 0:00:09.3]} 31. Bc7 {[%clk 0:00:56.8]} 31... Rc8 {[%clk
0:00:08.7]} 32. Bb5 {[%clk 0:00:56.6]} 32... Nde5 {[%clk 0:00:05.7]} 33. Bxe5+
{[%clk 0:00:56.2]} 1-0

[Event "Early-Titled-Tuesday-Blitz-May-07-2024"]
[Site "Chess.com"]
[Date "2024.05.07"]
[Round "5"]
[White "kanzaww"]
[Black "LeoWin2012"]
[Result "0-1"]
[WhiteElo "2508"]
[BlackElo "2321"]
[TimeControl "180+1"]
[EndTime "8:58:15 PDT"]
[Termination "LeoWin2012 won by resignation"]

1. e4 {[%clk 0:03:00.9]} 1... e5 {[%clk 0:02:58.2]} 2. Nf3 {[%clk 0:03:01.1]}
2... Nf6 {[%clk 0:02:57.9]} 3. Nxe5 {[%clk 0:02:58]} 3... d6 {[%clk 0:02:57.8]}
4. Nf3 {[%clk 0:02:58]} 4... Nxe4 {[%clk 0:02:57.7]} 5. Nc3 {[%clk 0:02:58.3]}
5... Nxc3 {[%clk 0:02:55.2]} 6. dxc3 {[%clk 0:02:59.2]} 6... Be7 {[%clk
0:02:55.3]} 7. Be3 {[%clk 0:02:55.3]} 7... O-O {[%clk 0:02:54.3]} 8. Qd2 {[%clk
0:02:56.1]} 8... a5 {[%clk 0:02:53.9]} 9. O-O-O {[%clk 0:02:54.3]} 9... a4
{[%clk 0:02:54.4]} 10. h4 {[%clk 0:02:53.2]} 10... a3 {[%clk 0:02:54.2]} 11. b3
{[%clk 0:02:53.4]} 11... Bf6 {[%clk 0:02:51.9]} 12. h5 {[%clk 0:02:50.4]} 12...
h6 {[%clk 0:02:52.1]} 13. Bd3 {[%clk 0:02:48.6]} 13... Bg4 {[%clk 0:02:47.6]}
14. Rde1 {[%clk 0:02:46.6]} 14... Nc6 {[%clk 0:02:46.9]} 15. Nd4 {[%clk
0:02:45.7]} 15... Nxd4 {[%clk 0:02:43.3]} 16. Bxd4 {[%clk 0:02:40.8]} 16... Bxd4
{[%clk 0:02:42.9]} 17. cxd4 {[%clk 0:02:41.7]} 17... Qf6 {[%clk 0:02:42]} 18. c3
{[%clk 0:02:36.7]} 18... c5 {[%clk 0:02:36.5]} 19. dxc5 {[%clk 0:02:33.5]} 19...
dxc5 {[%clk 0:02:36.2]} 20. f3 {[%clk 0:02:33.6]} 20... Be6 {[%clk 0:02:34.1]}
21. Bc2 {[%clk 0:02:31]} 21... Rad8 {[%clk 0:02:26.5]} 22. Qe3 {[%clk
0:02:31.1]} 22... Bf5 {[%clk 0:02:13.8]} 23. g4 {[%clk 0:02:01.9]} 23... Bxc2
{[%clk 0:02:13]} 24. Kxc2 {[%clk 0:02:02.8]} 24... c4 {[%clk 0:02:07.5]} 25.
bxc4 {[%clk 0:01:45.2]} 25... Qc6 {[%clk 0:01:58.6]} 26. Qe4 {[%clk 0:01:30.4]}
26... Qb6 {[%clk 0:01:56.3]} 27. Rb1 {[%clk 0:01:23.3]} 27... Qf2+ {[%clk
0:01:55.3]} 28. Kb3 {[%clk 0:01:23.5]} 28... Qb6+ {[%clk 0:01:49.3]} 29. Kc2
{[%clk 0:01:22]} 29... Qf2+ {[%clk 0:01:49.3]} 30. Kb3 {[%clk 0:01:22.5]} 30...
Rd6 {[%clk 0:01:25.4]} 31. c5 {[%clk 0:01:15.3]} 31... Qxc5 {[%clk 0:01:24.6]}
32. Rhe1 {[%clk 0:01:13.8]} 32... Rc8 {[%clk 0:01:20.3]} 33. Re3 {[%clk
0:01:04.3]} 33... Rd2 {[%clk 0:01:17.5]} 34. c4 {[%clk 0:00:42.5]} 34... Rd4
{[%clk 0:01:00.3]} 35. Qc2 {[%clk 0:00:29.5]} 35... Rxc4 {[%clk 0:00:54.9]} 36.
Re8+ {[%clk 0:00:16.7]} 36... Rxe8 {[%clk 0:00:54.4]} 37. Qxc4 {[%clk 0:00:17]}
37... Re3+ {[%clk 0:00:54.4]} 0-1

[Event "Early-Titled-Tuesday-Blitz-May-07-2024"]
[Site "Chess.com"]
[Date "2024.05.07"]
[Round "5"]
[White "kpio91"]
[Black "Ruslan_Kurayan"]
[Result "1-0"]
[WhiteElo "2869"]
[BlackElo "2633"]
[TimeControl "180+1"]
[EndTime "8:58:16 PDT"]
[Termination "kpio91 won by checkmate"]

1. e4 {[%clk 0:03:00.9]} 1... c5 {[%clk 0:02:24.9]} 2. c3 {[%clk 0:02:54.6]}
2... Nf6 {[%clk 0:02:23.2]} 3. e5 {[%clk 0:02:53.8]} 3... Nd5 {[%clk 0:02:22.6]}
4. Nf3 {[%clk 0:02:54.2]} 4... Nc6 {[%clk 0:02:22.2]} 5. Bc4 {[%clk 0:02:53.3]}
5... e6 {[%clk 0:02:18.6]} 6. d4 {[%clk 0:02:50.6]} 6... cxd4 {[%clk 0:02:18.4]}
7. cxd4 {[%clk 0:02:50.7]} 7... d6 {[%clk 0:02:18.3]} 8. O-O {[%clk 0:02:50]}
8... Be7 {[%clk 0:02:14.9]} 9. Re1 {[%clk 0:02:48]} 9... O-O {[%clk 0:02:12.8]}
10. Bxd5 {[%clk 0:02:48.1]} 10... exd5 {[%clk 0:02:12.7]} 11. Nc3 {[%clk
0:02:48.9]} 11... dxe5 {[%clk 0:01:36.1]} 12. dxe5 {[%clk 0:02:48.1]} 12... d4
{[%clk 0:01:33.4]} 13. Ne4 {[%clk 0:02:32.2]} 13... Bg4 {[%clk 0:01:32.7]} 14.
Bf4 {[%clk 0:02:32.1]} 14... Qd5 {[%clk 0:01:25.9]} 15. h3 {[%clk 0:02:28.4]}
15... Bh5 {[%clk 0:01:22.1]} 16. Ned2 {[%clk 0:01:58.7]} 16... Rfe8 {[%clk
0:01:13]} 17. a3 {[%clk 0:01:49.9]} 17... Rad8 {[%clk 0:01:07.1]} 18. Rc1 {[%clk
0:01:47.3]} 18... d3 {[%clk 0:00:53.6]} 19. Qa4 {[%clk 0:01:43]} 19... Bc5
{[%clk 0:00:46.8]} 20. Bg5 {[%clk 0:01:06.7]} 20... Rd7 {[%clk 0:00:43.6]} 21.
Qh4 {[%clk 0:01:06.1]} 21... Bxf3 {[%clk 0:00:30.9]} 22. Nxf3 {[%clk 0:01:05.4]}
22... Nd4 {[%clk 0:00:31.3]} 23. Nxd4 {[%clk 0:01:00.3]} 23... Bxd4 {[%clk
0:00:19.1]} 24. Rcd1 {[%clk 0:00:49.2]} 24... Bxb2 {[%clk 0:00:19.1]} 25. Qg3
{[%clk 0:00:40.6]} 25... Bxe5 {[%clk 0:00:16.9]} 26. Bf6 {[%clk 0:00:34.2]}
26... Rde7 {[%clk 0:00:14.3]} 27. Qxg7# {[%clk 0:00:32.5]} 1-0

[Event "Early-Titled-Tuesday-Blitz-May-07-2024"]
[Site "Chess.com"]
[Date "2024.05.07"]
[Round "5"]
[White "cristianserban1"]
[Black "Alexandr_Kholin"]
[Result "0-1"]
[WhiteElo "2607"]
[BlackElo "2495"]
[TimeControl "180+1"]
[EndTime "8:58:21 PDT"]
[Termination "Alexandr_Kholin won on time"]

1. Nf3 {[%clk 0:02:33.9]} 1... b6 {[%clk 0:02:58.7]} 2. b3 {[%clk 0:02:33.8]}
2... Bb7 {[%clk 0:02:58.3]} 3. Bb2 {[%clk 0:02:34.5]} 3... Nf6 {[%clk 0:02:57]}
4. g3 {[%clk 0:02:34.9]} 4... c5 {[%clk 0:02:56.8]} 5. Bg2 {[%clk 0:02:34.8]}
5... g6 {[%clk 0:02:56.7]} 6. O-O {[%clk 0:02:35.2]} 6... Bg7 {[%clk 0:02:56.7]}
7. c4 {[%clk 0:02:35.9]} 7... O-O {[%clk 0:02:56.1]} 8. e3 {[%clk 0:02:36.5]}
8... d5 {[%clk 0:02:50.6]} 9. cxd5 {[%clk 0:02:35.6]} 9... Qxd5 {[%clk
0:02:46.1]} 10. Nc3 {[%clk 0:02:28.6]} 10... Qh5 {[%clk 0:02:44.3]} 11. d4
{[%clk 0:02:22.4]} 11... Nbd7 {[%clk 0:02:42.7]} 12. Ne5 {[%clk 0:02:08]} 12...
Bxg2 {[%clk 0:02:32.4]} 13. Qxh5 {[%clk 0:02:03.1]} 13... Nxh5 {[%clk 0:02:27]}
14. Kxg2 {[%clk 0:01:33.8]} 14... Nxe5 {[%clk 0:02:24.3]} 15. dxe5 {[%clk
0:01:34.3]} 15... Bxe5 {[%clk 0:02:23.9]} 16. f4 {[%clk 0:01:32.2]} 16... Bg7
{[%clk 0:02:16.5]} 17. e4 {[%clk 0:01:27.8]} 17... Rfd8 {[%clk 0:02:08.7]} 18.
e5 {[%clk 0:01:27.8]} 18... f6 {[%clk 0:02:04.9]} 19. Ne4 {[%clk 0:01:11.2]}
19... fxe5 {[%clk 0:02:02.1]} 20. fxe5 {[%clk 0:01:12.1]} 20... Rd5 {[%clk
0:01:54.7]} 21. Rae1 {[%clk 0:00:09.5]} 21... Bxe5 {[%clk 0:01:52]} 22. Bxe5
{[%clk 0:00:00.9]} 22... Rxe5 {[%clk 0:01:52.9]} 23. g4 {[%clk 0:00:00.6]} 23...
Ng7 {[%clk 0:01:46.2]} 24. Nc3 {[%clk 0:00:00.9]} 24... Rxe1 {[%clk 0:01:41.3]}
25. Rxe1 {[%clk 0:00:01.8]} 25... e6 {[%clk 0:01:42.1]} 26. Rd1 {[%clk
0:00:02.2]} 26... Rf8 {[%clk 0:01:29]} 27. Rd7 {[%clk 0:00:02.2]} 27... Rf7
{[%clk 0:01:27.5]} 28. Rd8+ {[%clk 0:00:02.5]} 28... Rf8 {[%clk 0:01:27.6]} 29.
Rd7 {[%clk 0:00:03]} 29... Rf4 {[%clk 0:01:28]} 30. Kg3 {[%clk 0:00:02.7]} 30...
Rd4 {[%clk 0:01:26.9]} 31. Rxa7 {[%clk 0:00:02.9]} 31... e5 {[%clk 0:01:26.9]}
32. Nb5 {[%clk 0:00:02.8]} 32... Rd3+ {[%clk 0:01:26.1]} 33. Kg2 {[%clk
0:00:03.4]} 33... Ne6 {[%clk 0:01:25.5]} 34. a4 {[%clk 0:00:01.6]} 34... Nf4+
{[%clk 0:01:24.8]} 35. Kf2 {[%clk 0:00:02.1]} 35... e4 {[%clk 0:01:23.5]} 36.
Re7 {[%clk 0:00:01.8]} 36... Rf3+ {[%clk 0:01:23]} 37. Kg1 {[%clk 0:00:01.9]}
37... e3 {[%clk 0:01:22.6]} 38. Nc3 {[%clk 0:00:01.4]} 38... Kf8 {[%clk
0:01:17.6]} 39. Re4 {[%clk 0:00:01.2]} 39... g5 {[%clk 0:01:16.6]} 40. b4 {[%clk
0:00:00.7]} 40... cxb4 {[%clk 0:01:16.5]} 41. Rxb4 {[%clk 0:00:01.1]} 41... e2
{[%clk 0:01:16.7]} 0-1

[Event "Early-Titled-Tuesday-Blitz-May-07-2024"]
[Site "Chess.com"]
[Date "2024.05.07"]
[Round "5"]
[White "Mikasinski"]
[Black "Golubovsky"]
[Result "0-1"]
[WhiteElo "2627"]
[BlackElo "2511"]
[TimeControl "180+1"]
[EndTime "8:58:22 PDT"]
[Termination "Golubovsky won by resignation"]

1. e4 {[%clk 0:02:57.1]} 1... c5 {[%clk 0:02:59.5]} 2. Nf3 {[%clk 0:02:56.6]}
2... d6 {[%clk 0:02:59.5]} 3. d4 {[%clk 0:02:57]} 3... cxd4 {[%clk 0:03:00.4]}
4. Nxd4 {[%clk 0:02:57.7]} 4... Nf6 {[%clk 0:03:00.5]} 5. Nc3 {[%clk 0:02:58]}
5... a6 {[%clk 0:03:01.3]} 6. Rg1 {[%clk 0:02:58.4]} 6... b5 {[%clk 0:02:55.7]}
7. g4 {[%clk 0:02:58.3]} 7... Bb7 {[%clk 0:02:56.3]} 8. f3 {[%clk 0:02:58.3]}
8... e6 {[%clk 0:02:51.8]} 9. Be3 {[%clk 0:02:57.8]} 9... Nc6 {[%clk 0:02:48.9]}
10. Qd2 {[%clk 0:02:57.3]} 10... Qc7 {[%clk 0:02:43.1]} 11. g5 {[%clk
0:02:55.8]} 11... Nd7 {[%clk 0:02:34.9]} 12. O-O-O {[%clk 0:02:55.3]} 12... Rc8
{[%clk 0:02:22.1]} 13. Kb1 {[%clk 0:02:51.2]} 13... Nb6 {[%clk 0:02:16.8]} 14.
Ndxb5 {[%clk 0:02:48.7]} 14... axb5 {[%clk 0:02:14.7]} 15. Nxb5 {[%clk
0:02:49.1]} 15... Qd8 {[%clk 0:02:15]} 16. Nxd6+ {[%clk 0:02:26.5]} 16... Qxd6
{[%clk 0:02:09.8]} 17. Qxd6 {[%clk 0:02:25.5]} 17... Bxd6 {[%clk 0:02:09.5]} 18.
Rxd6 {[%clk 0:02:25.3]} 18... Ke7 {[%clk 0:02:00.8]} 19. Bc5 {[%clk 0:02:21.1]}
19... Nd7 {[%clk 0:02:00.7]} 20. Ba3 {[%clk 0:02:18]} 20... Kd8 {[%clk
0:01:43.9]} 21. Bb5 {[%clk 0:02:16.6]} 21... Kc7 {[%clk 0:01:42.8]} 22. Rgd1
{[%clk 0:02:13.4]} 22... Rhd8 {[%clk 0:01:35.4]} 23. b3 {[%clk 0:02:06.4]} 23...
Nde5 {[%clk 0:01:27.7]} 24. f4 {[%clk 0:02:01.5]} 24... Ng6 {[%clk 0:01:19.8]}
25. f5 {[%clk 0:01:58.9]} 25... Nh4 {[%clk 0:01:18.8]} 26. fxe6 {[%clk
0:01:57.6]} 26... fxe6 {[%clk 0:01:18.9]} 27. Bb2 {[%clk 0:01:53.6]} 27... Rxd6
{[%clk 0:01:16.5]} 28. Rf1 {[%clk 0:01:49]} 28... Ng6 {[%clk 0:01:12.8]} 29.
Bxg7 {[%clk 0:01:47.2]} 29... Rcd8 {[%clk 0:01:08.9]} 30. Kb2 {[%clk 0:01:45.3]}
30... R6d7 {[%clk 0:01:09.4]} 31. Bc3 {[%clk 0:01:44.9]} 31... Nge5 {[%clk
0:01:07.9]} 32. Bxe5+ {[%clk 0:01:40.9]} 32... Nxe5 {[%clk 0:01:08.3]} 33. Bxd7
{[%clk 0:01:41.3]} 33... Rxd7 {[%clk 0:01:09.2]} 34. Rf6 {[%clk 0:01:30.2]}
34... Kd6 {[%clk 0:01:07.9]} 35. Rf4 {[%clk 0:01:27.1]} 35... Rf7 {[%clk
0:01:06.5]} 36. Rh4 {[%clk 0:01:27.2]} 36... Ng6 {[%clk 0:01:06.5]} 37. Rh3
{[%clk 0:01:25.4]} 37... Bxe4 {[%clk 0:01:06.3]} 38. a4 {[%clk 0:01:26]} 38...
Ne5 {[%clk 0:01:01.7]} 39. a5 {[%clk 0:01:24.7]} 39... Rf2 {[%clk 0:01:02]} 40.
Rc3 {[%clk 0:01:23.2]} 40... Nc6 {[%clk 0:01:01]} 41. a6 {[%clk 0:01:23]} 41...
Rxh2 {[%clk 0:00:56.5]} 42. Rc4 {[%clk 0:01:10.6]} 42... Rxc2+ {[%clk
0:00:50.2]} 43. Rxc2 {[%clk 0:01:09.5]} 43... Bxc2 {[%clk 0:00:51.1]} 44. Kxc2
{[%clk 0:01:09.8]} 44... Nb4+ {[%clk 0:00:51.1]} 45. Kc3 {[%clk 0:01:09]} 45...
Nxa6 {[%clk 0:00:50.9]} 46. Kd4 {[%clk 0:01:08.1]} 46... Nc5 {[%clk 0:00:48.8]}
47. b4 {[%clk 0:01:08.2]} 47... e5+ {[%clk 0:00:49.1]} 48. Ke3 {[%clk
0:00:59.1]} 48... Na6 {[%clk 0:00:48.3]} 49. b5 {[%clk 0:00:59]} 49... Nc7
{[%clk 0:00:48.3]} 50. b6 {[%clk 0:00:59]} 50... Nd5+ {[%clk 0:00:48.7]} 51. Ke4
{[%clk 0:00:59.7]} 51... Nxb6 {[%clk 0:00:49.6]} 52. Kf5 {[%clk 0:01:00.2]}
52... Nd7 {[%clk 0:00:45.4]} 53. Ke4 {[%clk 0:00:58.9]} 53... Ke6 {[%clk
0:00:45.5]} 54. g6 {[%clk 0:00:57.4]} 54... hxg6 {[%clk 0:00:45.5]} 0-1